fUST/lending_fUST_20241102
["ID","MTS","AMOUNT","RATE_DAILY","PERIOD"]
[341151894,1730476912185,-718067.85,0.00030398,30]
[341151895,1730476912210,-5000.0,0.00034,20]
[341151896,1730476912234,-10000.0,0.000355,25]
[341151897,1730476916584,5000.0,0.00035,25]
[341151898,1730476922102,4030.37,0.000304,30]
[341151899,1730476923018,2666.6,0.000304,30]
[341151901,1730477103172,695.015,0.00033362,120]
[341151922,1730477405740,5000.0,0.0002018,2]
[341151977,1730477432437,-476.81578999,0.00032208,2]
[341152111,1730477435747,-32.86256301,0.00032208,2]
[341152114,1730477435760,-342.32,0.00032677,2]
[341152116,1730477435771,-249.31743649,0.00032899,120]
[341152137,1730477438643,-334.85071861,0.00032899,120]
[341152138,1730477438655,-5665.8318449,0.00032899,120]
[341152139,1730477438665,-184.211955,0.00032971,2]
[341152140,1730477438675,-8002.1562001,0.000335,15]
[341152182,1730477440399,-1997.8437999,0.000335,15]
[341152184,1730477440409,-5966.38342158,0.000335,15]
[341152189,1730477440453,-1388.03651148,0.000335,15]
[341152726,1730477465032,-2645.58006694,0.000335,15]
[341152727,1730477465045,-150.0,0.00035158,2]
[341152728,1730477465061,-350.0,0.0003526,2]
[341152729,1730477465070,-306.0,0.000355,11]
[341152730,1730477465080,-1914.36293246,0.00035615,2]
[341152731,1730477465089,-172.90486402,0.00035615,7]
[341152732,1730477465101,-500.0,0.00035615,7]
[341152733,1730477465110,-324.0,0.00035615,7]
[341152734,1730477465120,-592.25583944,0.00035615,7]
[341152735,1730477465129,-200.000027,0.00035615,7]
[341152736,1730477465138,-500.0,0.00035615,7]
[341152737,1730477465147,-500.0,0.00035615,7]
[341152738,1730477465156,-500.0,0.00035615,7]
[341152739,1730477465165,-500.0,0.00035615,7]
[341152740,1730477465175,-212.48697037,0.00035616,14]
[341152741,1730477465184,-500.0,0.00035616,5]
[341152742,1730477465195,-500.0,0.00035616,5]
[341152743,1730477465206,-500.0,0.00035616,5]
[341152744,1730477465215,-500.0,0.00035616,5]
[341152745,1730477465224,-519.26,0.00035616,5]
[341152746,1730477465233,-4500.65,0.00035616,5]
[341152747,1730477465242,-500.0,0.00035616,5]
[341152748,1730477465251,-500.0,0.00035616,5]
[341152749,1730477465261,-1935.5,0.00035616,5]
[341152750,1730477465270,-500.0,0.00035616,5]
[341152751,1730477465279,-894.97,0.00035616,5]
[341152752,1730477465288,-500.0,0.00035616,5]
[341152753,1730477465301,-1262.89,0.00035616,5]
[341152754,1730477465314,-500.0,0.00035616,5]
[341152755,1730477465323,-918.36,0.00035616,5]
[341152756,1730477465333,-500.0,0.00035616,5]
[341152757,1730477465342,-500.0,0.00035616,5]
[341152758,1730477465351,-500.0,0.00035616,5]
[341152759,1730477465360,-500.0,0.00035616,5]
[341152760,1730477465369,-534.85,0.00035616,5]
[341152761,1730477465378,-500.0,0.00035616,5]
[341152762,1730477465387,-500.0,0.00035616,5]
[341152763,1730477465396,-556.54,0.00035616,5]
[341152764,1730477465406,-500.0,0.00035616,5]
[341152765,1730477465415,-221.94817699,0.00035616,5]
[341152766,1730477465424,-500.0,0.00035616,5]
[341152767,1730477465434,-500.0,0.00035616,5]
[341152768,1730477465445,-500.0,0.00035616,5]
[341152769,1730477465454,-500.0,0.00035616,5]
[341152770,1730477465463,-500.0,0.00035616,5]
[341152771,1730477465472,-500.0,0.00035616,5]
[341152772,1730477465481,-500.0,0.00035616,5]
[341152773,1730477465491,-500.0,0.00035616,5]
[341152774,1730477465501,-500.0,0.00035616,5]
[341152775,1730477465510,-500.0,0.00035616,5]
[341152776,1730477465521,-500.0,0.00035616,5]
[341152777,1730477465532,-500.0,0.00035616,5]
[341152778,1730477465542,-500.0,0.00035616,5]
[341152779,1730477465557,-500.0,0.00035616,5]
[341152780,1730477465566,-500.0,0.00035616,5]
[341152781,1730477465575,-500.0,0.00035616,5]
[341152782,1730477465584,-562.54,0.00035616,2]
[341152783,1730477465593,-500.0,0.00035616,5]
[341152784,1730477465604,-500.0,0.00035616,5]
[341152785,1730477465614,-500.0,0.00035616,5]
[341152786,1730477465623,-500.0,0.00035616,5]
[341152787,1730477465634,-500.0,0.00035616,5]
[341152788,1730477465646,-500.0,0.00035616,5]
[341152789,1730477465656,-500.0,0.00035616,5]
[341152790,1730477465665,-3486.42,0.00035616,120]
[341152791,1730477465675,-500.0,0.00035616,5]
[341152792,1730477465684,-500.0,0.00035616,5]
[341152793,1730477465693,-1703.99,0.00035616,5]
[341152794,1730477465701,-500.0,0.00035616,5]
[341152795,1730477465710,-500.0,0.00035616,5]
[341152796,1730477465719,-500.0,0.00035616,5]
[341152797,1730477465729,-500.0,0.00035616,5]
[341152798,1730477465738,-1985.68,0.00035616,116]
[341152799,1730477465747,-500.0,0.00035616,5]
[341152800,1730477465756,-500.0,0.00035616,5]
[341152801,1730477465765,-500.0,0.00035616,5]
[341152802,1730477465774,-500.0,0.00035616,5]
[341152803,1730477465783,-500.0,0.00035616,5]
[341152804,1730477465793,-500.0,0.00035616,5]
[341152805,1730477465806,-500.0,0.00035616,5]
[341152806,1730477465815,-500.0,0.00035616,5]
[341152807,1730477465898,-500.0,0.00035616,5]
[341152808,1730477465908,-500.0,0.00035616,5]
[341152809,1730477465917,-500.0,0.00035616,5]
[341152810,1730477465927,-500.0,0.00035616,5]
[341152811,1730477465936,-500.0,0.00035616,5]
[341152812,1730477465945,-500.0,0.00035616,5]
[341152813,1730477465957,-6934.94,0.00035616,120]
[341152814,1730477465967,-500.0,0.00035616,5]
[341152815,1730477465976,-500.0,0.00035616,5]
[341152816,1730477465986,-500.0,0.00035616,5]
[341152817,1730477465997,-500.0,0.00035616,5]
[341152818,1730477466007,-500.0,0.00035616,5]
[341152819,1730477466016,-500.0,0.00035616,5]
[341152820,1730477466027,-500.0,0.00035616,5]
[341152821,1730477466037,-500.0,0.00035616,5]
[341152822,1730477466048,-500.0,0.00035616,5]
[341152823,1730477466059,-500.0,0.00035616,5]
[341152824,1730477466068,-500.0,0.00035616,5]
[341152825,1730477466079,-500.0,0.00035616,5]
[341152826,1730477466091,-567.05,0.00035616,5]
[341152827,1730477466103,-508.41,0.00035616,5]
[341152828,1730477466113,-500.0,0.00035616,5]
[341152829,1730477466124,-500.0,0.00035616,5]
[341152830,1730477466134,-500.0,0.00035616,5]
[341152831,1730477466144,-500.0,0.00035616,5]
[341152832,1730477466154,-500.0,0.00035616,5]
[341152833,1730477466163,-500.0,0.00035616,5]
[341152834,1730477466173,-500.0,0.00035616,5]
[341152835,1730477466182,-500.0,0.00035616,5]
[341152836,1730477466192,-2683.9,0.00035616,5]
[341152837,1730477466202,-500.0,0.00035616,5]
[341152838,1730477466211,-500.0,0.00035616,5]
[341152839,1730477466220,-616.85,0.00035616,5]
[341152840,1730477466230,-620.6,0.00035616,5]
[341152841,1730477466240,-500.0,0.00035616,5]
[341152842,1730477466249,-500.0,0.00035616,5]
[341152843,1730477466258,-12519.85,0.00035616,5]
[341152844,1730477466267,-500.0,0.00035616,5]
[341152845,1730477466278,-500.0,0.00035616,5]
[341152846,1730477466287,-1027.25,0.00035616,5]
[341152847,1730477466299,-500.0,0.00035616,5]
[341152848,1730477466309,-500.0,0.00035616,5]
[341152849,1730477466319,-500.0,0.00035616,5]
[341152850,1730477466330,-500.0,0.00035616,5]
[341152851,1730477466339,-500.0,0.00035616,5]
[341152852,1730477466350,-500.0,0.00035616,5]
[341152853,1730477466359,-500.0,0.00035616,5]
[341152854,1730477466369,-500.0,0.00035616,5]
[341152855,1730477466378,-500.0,0.00035616,5]
[341152856,1730477466388,-500.0,0.00035616,5]
[341152857,1730477466397,-500.0,0.00035616,5]
[341152858,1730477466406,-500.0,0.00035616,5]
[341152859,1730477466415,-500.0,0.00035616,5]
[341152860,1730477466424,-500.0,0.00035616,5]
[341152861,1730477466435,-500.0,0.00035616,5]
[341152862,1730477466446,-12233.59,0.00035616,5]
[341152863,1730477466456,-14013.32,0.00035616,3]
[341152864,1730477466465,-500.0,0.00035616,5]
[341152865,1730477466474,-500.0,0.00035616,5]
[341152866,1730477466484,-500.0,0.00035616,5]
[341152867,1730477466495,-519.84,0.00035616,5]
[341152868,1730477466505,-500.0,0.00035616,5]
[341152869,1730477466513,-500.0,0.00035616,5]
[341152870,1730477466522,-730.17,0.00035616,5]
[341152871,1730477466532,-500.0,0.00035616,5]
[341152872,1730477466542,-500.0,0.00035616,5]
[341152873,1730477466553,-2298.38,0.00035616,5]
[341152874,1730477466562,-500.0,0.00035616,5]
[341152875,1730477466572,-500.0,0.00035616,5]
[341152876,1730477466581,-512.51,0.00035616,5]
[341152877,1730477466590,-500.0,0.00035616,5]
[341152878,1730477466599,-742.43,0.00035616,5]
[341152879,1730477466608,-1830.18,0.00035616,5]
[341152880,1730477466617,-500.0,0.00035616,5]
[341152881,1730477466625,-500.0,0.00035616,5]
[341152882,1730477466636,-500.0,0.00035616,5]
[341152883,1730477466645,-500.0,0.00035616,5]
[341152884,1730477466656,-500.0,0.00035616,5]
[341152885,1730477466665,-500.0,0.00035616,5]
[341152886,1730477466675,-1740.78,0.00035616,5]
[341152887,1730477466684,-500.0,0.00035616,5]
[341152888,1730477466693,-500.0,0.00035616,5]
[341152889,1730477466702,-500.0,0.00035616,5]
[341152890,1730477466712,-500.0,0.00035616,5]
[341152891,1730477466721,-500.0,0.00035616,5]
[341152892,1730477466730,-500.0,0.00035673,2]
[341152893,1730477466739,-500.0,0.00035889,5]
[341152894,1730477466748,-560.5,0.0003589,5]
[341152895,1730477466757,-4500.65,0.0003589,5]
[341152896,1730477466766,-1935.5,0.0003589,5]
[341152897,1730477466775,-282.4,0.0003589,5]
[341152898,1730477466784,-894.97,0.0003589,5]
[341152899,1730477466794,-392.72,0.0003589,5]
[341152900,1730477466804,-1262.89,0.0003589,5]
[341152901,1730477466813,-918.36,0.0003589,5]
[341152902,1730477466822,-315.99,0.0003589,5]
[341152903,1730477466831,-500.0,0.0003589,5]
[341152904,1730477466840,-500.0,0.0003589,5]
[341152905,1730477466850,-538.22577691,0.0003589,5]
[341152906,1730477466859,-500.0,0.0003589,5]
[341152907,1730477466868,-500.0,0.0003589,5]
[341152908,1730477466877,-500.0,0.0003589,5]
[341152909,1730477466886,-623.29391067,0.0003589,5]
[341152910,1730477466895,-3486.42,0.0003589,120]
[341152911,1730477466904,-500.0,0.0003589,5]
[341152912,1730477466915,-1703.99,0.0003589,5]
[341152913,1730477466925,-500.0,0.0003589,5]
[341152914,1730477466935,-1985.68,0.0003589,116]
[341152915,1730477466945,-366.55,0.0003589,5]
[341152916,1730477466956,-500.0,0.0003589,5]
[341152917,1730477466969,-311.59,0.0003589,5]
[341152918,1730477466978,-203.34,0.0003589,5]
[341152919,1730477466987,-500.0,0.0003589,5]
[341152920,1730477466998,-150.54,0.0003589,5]
[341152921,1730477467009,-500.0,0.0003589,5]
[341152922,1730477467021,-500.0,0.0003589,5]
[341152923,1730477467032,-500.0,0.0003589,5]
[341152924,1730477467043,-567.05,0.0003589,5]
[341152925,1730477467055,-500.0,0.0003589,5]
[341152926,1730477467064,-238.76,0.0003589,5]
[341152927,1730477467073,-500.0,0.0003589,5]
[341152928,1730477467082,-303.22,0.0003589,5]
[341152929,1730477467092,-2683.9,0.0003589,5]
[341152930,1730477467101,-620.6,0.0003589,5]
[341152931,1730477467110,-12519.85,0.0003589,5]
[341152932,1730477467119,-500.0,0.0003589,5]
[341152933,1730477467128,-1027.25,0.0003589,5]
[341152934,1730477467138,-302.8,0.0003589,5]
[341152935,1730477467146,-182.06,0.0003589,5]
[341152936,1730477467155,-500.0,0.0003589,5]
[341152937,1730477467165,-500.0,0.0003589,5]
[341152938,1730477467174,-500.0,0.0003589,5]
[341152939,1730477467182,-500.0,0.0003589,5]
[341152940,1730477467192,-345.49,0.0003589,5]
[341152941,1730477467201,-500.0,0.0003589,5]
[341152942,1730477467211,-356.28,0.0003589,5]
[341152943,1730477467220,-12233.59,0.0003589,5]
[341152944,1730477467230,-14013.32,0.0003589,3]
[341152945,1730477467239,-500.0,0.0003589,5]
[341152946,1730477467249,-730.17,0.0003589,5]
[341152947,1730477467259,-415.46874937,0.0003589,5]
[341152948,1730477467268,-2298.38,0.0003589,5]
[341152949,1730477467276,-512.51,0.0003589,5]
[341152950,1730477467286,-742.43,0.0003589,5]
[341152951,1730477467295,-1830.18,0.0003589,5]
[341152952,1730477467307,-500.0,0.0003589,5]
[341152953,1730477467318,-500.0,0.0003589,5]
[341152954,1730477467328,-500.0,0.0003589,5]
[341152955,1730477467340,-500.0,0.0003589,5]
[341152956,1730477467351,-1740.78,0.0003589,5]
[341152957,1730477467361,-500.0,0.0003589,5]
[341152958,1730477467370,-500.0,0.0003589,5]
[341152959,1730477467379,-500.0,0.0003592,5]
[341152960,1730477467388,-26722.14447009,0.00036,120]
[341152961,1730477467403,-693.21,0.00036,120]
[341152974,1730477703141,567.45407104,0.00033131,120]
[341152976,1730478102858,165.504728,0.00013973,2]
[341153016,1730478587874,4827.95760538,0.0003315,120]
[341153049,1730478636102,-184.211956,0.00028332,2]
[341153051,1730478636112,-1263.98548569,0.00028345,2]
[341153497,1730478640604,-2847.83766781,0.00028345,2]
[341153499,1730478640614,-1321.61507138,0.000286,120]
[341153501,1730478640625,-1345.83855128,0.000295,120]
[341153502,1730478640635,-220.89532617,0.00029899,2]
[341153504,1730478640645,-220.89532617,0.000299,2]
[341153506,1730478640654,-300.0,0.00029999,2]
[341153508,1730478640664,-300.0,0.00029999,2]
[341153510,1730478640673,-151.0,0.0003,120]
[341153512,1730478640688,-151.0,0.0003,120]
[341153514,1730478640701,-10011.70490291,0.0003,5]
[341153516,1730478640711,-2851.51270087,0.0003,120]
[341153517,1730478640722,-24900.0,0.00030373,2]
[341153519,1730478640732,-151.0,0.00030959,120]
[341153521,1730478640741,-151.0,0.00031863,120]
[341153523,1730478640751,-151.0,0.00031918,120]
[341153525,1730478640760,-420.0,0.00032332,2]
[341153527,1730478640770,-168.536748,0.00032357,2]
[341153529,1730478640780,-500.0,0.00032876,2]
[341153531,1730478640789,-328.24139016,0.00032876,2]
[341153532,1730478640798,-275.77609866,0.00032876,2]
[341153534,1730478640807,-151.0,0.00032877,120]
[341153536,1730478640819,-5830.287567,0.00032877,120]
[341153538,1730478640829,-225.0,0.00033038,2]
[341153540,1730478640839,-225.0,0.00033129,2]
[341153542,1730478640849,-2299.54571701,0.0003315,14]
[341153544,1730478640859,-2057.955742,0.0003315,20]
[341153546,1730478640868,-168.12172712,0.0003315,7]
[341153548,1730478640878,-225.0,0.00033219,2]
[341153550,1730478640888,-225.0,0.0003331,2]
[341153552,1730478640898,-225.0,0.00033401,2]
[341153554,1730478640907,-225.0,0.00033491,2]
[341153555,1730478640917,-225.0,0.00033582,2]
[341153557,1730478640926,-225.0,0.00033672,2]
[341153559,1730478640939,-151.0,0.00033726,120]
[341153561,1730478640949,-225.0,0.00033763,2]
[341153563,1730478640959,-151.0,0.00033836,120]
[341153565,1730478640969,-225.0,0.00033854,2]
[341153567,1730478640979,-150.0,0.000339,17]
[341153568,1730478640989,-225.0,0.00033944,2]
[341153571,1730478641007,-225.0,0.00034035,2]
[341153573,1730478641020,-225.0,0.00034125,2]
[341153575,1730478641030,-225.0,0.00034216,2]
[341153577,1730478641040,-225.0,0.00034307,2]
[341153579,1730478641050,-225.0,0.00034397,2]
[341153581,1730478641059,-265.16979323,0.00034431,30]
[341153583,1730478641071,-225.0,0.00034488,2]
[341153585,1730478641081,-10000.0,0.000345,15]
[341153587,1730478641090,-150.0,0.00034521,120]
[341153589,1730478641101,-225.0,0.00034578,2]
[341153591,1730478641110,-225.0,0.00034669,2]
[341153593,1730478641120,-225.0,0.0003476,2]
[341153595,1730478641130,-151.0,0.00034795,120]
[341153596,1730478641141,-587.0,0.00034847,2]
[341153598,1730478641150,-305.7223525,0.00035,15]
[341153600,1730478641161,-10000.0,0.00035,18]
[341153602,1730478641171,-4998.24239458,0.00035,2]
[341153604,1730478641181,-150.0,0.00035137,120]
[341153606,1730478641195,-531.129,0.0003519,2]
[341153608,1730478641204,-1144.0,0.0003519,2]
[341153610,1730478641214,-2394.0,0.0003519,2]
[341153612,1730478641223,-150.0,0.0003519,2]
[341153614,1730478641233,-5000.0,0.00035499,120]
[341153616,1730478641244,-10000.0,0.000355,20]
[341153617,1730478641253,-1000.0,0.00035516,2]
[341153619,1730478641263,-151.0,0.00035589,120]
[341153621,1730478641274,-500.0,0.00035614,7]
[341153623,1730478641284,-390.0000189,0.00035614,7]
[341153626,1730478641294,-500.0,0.00035614,7]
[341153627,1730478641304,-500.0,0.00035614,7]
[341153629,1730478641314,-497.3468368,0.00035615,2]
[341153631,1730478641323,-500.0,0.00035615,7]
[341153633,1730478641333,-1961.95795366,0.00035615,120]
[341153635,1730478641342,-506.95662892,0.00035616,5]
[341153637,1730478641352,-515.61084056,0.00035616,5]
[341153639,1730478641362,-500.0,0.00035616,5]
[341153641,1730478641371,-500.0,0.00035616,5]
[341153643,1730478641381,-500.0,0.00035616,5]
[341153645,1730478641391,-500.0,0.00035616,5]
[341153647,1730478641400,-502.34720667,0.00035616,5]
[341153649,1730478641410,-500.0,0.00035616,5]
[341153650,1730478641419,-500.0,0.00035616,5]
[341153652,1730478641429,-505.42834401,0.00035616,5]
[341153654,1730478641441,-171.50426138,0.00035616,5]
[341153656,1730478641451,-314.9,0.00035616,5]
[341153658,1730478641460,-517.91903389,0.00035616,5]
[341153660,1730478641470,-500.0,0.00035616,5]
[341153662,1730478641479,-504.26837411,0.00035616,5]
[341153664,1730478641489,-507.01974075,0.00035616,5]
[341153666,1730478641498,-576.65038489,0.00035616,5]
[341153668,1730478641507,-500.0,0.00035616,5]
[341153669,1730478641517,-506.46186259,0.00035616,5]
[341153671,1730478641526,-500.0,0.00035616,5]
[341153673,1730478641535,-507.28269997,0.00035616,5]
[341153675,1730478641547,-500.0,0.00035616,5]
[341153677,1730478641558,-500.0,0.00035616,5]
[341153679,1730478641567,-503.23033688,0.00035616,5]
[341153681,1730478641577,-503.87606996,0.00035616,5]
[341153683,1730478641587,-500.0,0.00035616,5]
[341153685,1730478641596,-500.0,0.00035616,5]
[341153687,1730478641605,-500.0,0.00035616,5]
[341153689,1730478641618,-500.0,0.00035616,5]
[341153691,1730478641629,-500.0,0.00035616,5]
[341153693,1730478641639,-500.0,0.00035616,5]
[341153695,1730478641649,-527.99175324,0.00035616,5]
[341153697,1730478641660,-500.0,0.00035616,5]
[341153698,1730478641670,-568.48482583,0.00035616,5]
[341153700,1730478641679,-500.0,0.00035616,5]
[341153702,1730478641694,-500.0,0.00035616,5]
[341153704,1730478641704,-500.0,0.00035616,5]
[341153706,1730478641714,-500.0,0.00035616,5]
[341153708,1730478641724,-503.30523225,0.00035616,5]
[341153710,1730478641734,-559.51227185,0.00035616,5]
[341153712,1730478641744,-500.0,0.00035616,5]
[341153714,1730478641753,-501.90343083,0.00035616,5]
[341153716,1730478641763,-522.26095283,0.00035616,5]
[341153718,1730478641773,-520.01044981,0.00035616,5]
[341153720,1730478641782,-500.0,0.00035616,5]
[341153722,1730478641792,-500.0,0.00035616,5]
[341153724,1730478641801,-500.0,0.00035616,5]
[341153725,1730478641811,-507.97034781,0.00035616,5]
[341153727,1730478641821,-500.0,0.00035616,5]
[341153729,1730478641831,-500.0,0.00035616,5]
[341153731,1730478641842,-500.0,0.00035616,5]
[341153733,1730478641853,-528.06190249,0.00035616,5]
[341153735,1730478641863,-500.0,0.00035616,5]
[341153737,1730478641873,-500.0,0.00035616,5]
[341153739,1730478641883,-500.0,0.00035616,5]
[341153741,1730478641893,-500.0,0.00035616,5]
[341153743,1730478641903,-500.0,0.00035616,5]
[341153745,1730478641913,-500.0,0.00035616,5]
[341153746,1730478641923,-500.0,0.00035616,5]
[341153748,1730478641934,-500.0,0.00035616,5]
[341153750,1730478641952,-506.34619409,0.00035616,5]
[341153752,1730478641962,-500.0,0.00035616,5]
[341153754,1730478641972,-500.0,0.00035616,5]
[341153757,1730478641982,-503.62438651,0.00035616,5]
[341153759,1730478641992,-500.0,0.00035616,5]
[341153761,1730478642003,-505.30582931,0.00035616,5]
[341153763,1730478642012,-501.45061328,0.00035616,5]
[341153765,1730478642022,-304.69755547,0.00035616,5]
[341153767,1730478642032,-500.0,0.00035616,5]
[341153769,1730478642043,-502.17867385,0.00035616,5]
[341153771,1730478642053,-500.0,0.00035616,5]
[341153773,1730478642063,-500.0,0.00035616,5]
[341153775,1730478642073,-502.21225408,0.00035616,5]
[341153776,1730478642087,-502.26951507,0.00035616,5]
[341153777,1730478642097,-291.19995928,0.00035616,5]
[341153778,1730478642107,-500.0,0.00035616,5]
[341153779,1730478642117,-500.0,0.00035616,5]
[341153780,1730478642127,-504.39942117,0.00035616,5]
[341153781,1730478642137,-506.13195398,0.00035616,5]
[341153782,1730478642147,-511.51723901,0.00035616,5]
[341153783,1730478642157,-500.0,0.00035616,5]
[341153784,1730478642166,-514.55207299,0.00035616,5]
[341153785,1730478642176,-508.72536043,0.00035616,5]
[341153786,1730478642191,-552.45243695,0.00035616,5]
[341153787,1730478642202,-500.0,0.00035616,5]
[341153788,1730478642212,-1820.2,0.00035616,116]
[341153789,1730478642221,-506.41637395,0.00035616,5]
[341153790,1730478642232,-378.15185212,0.00035616,5]
[341153791,1730478642242,-500.0,0.00035616,5]
[341153792,1730478642252,-508.29268147,0.00035616,5]
[341153793,1730478642262,-507.23517238,0.00035616,5]
[341153795,1730478642272,-500.0,0.00035616,5]
[341153797,1730478642282,-500.0,0.00035616,5]
[341153799,1730478642291,-500.0,0.00035616,5]
[341153801,1730478642301,-500.0,0.00035616,5]
[341153803,1730478642311,-4198.0,0.00035616,5]
[341153805,1730478642320,-500.0,0.00035616,5]
[341153807,1730478642330,-500.0,0.00035616,5]
[341153809,1730478642341,-1795.04,0.00035616,5]
[341153811,1730478642350,-491.13386687,0.00035616,5]
[341153813,1730478642360,-503.63596924,0.00035616,5]
[341153815,1730478642370,-500.0,0.00035616,5]
[341153817,1730478642380,-500.0,0.00035616,5]
[341153819,1730478642390,-500.0,0.00035616,5]
[341153821,1730478642399,-500.0,0.00035616,5]
[341153823,1730478642410,-500.0,0.00035616,5]
[341153825,1730478642420,-500.0,0.00035616,5]
[341153827,1730478642431,-508.41077583,0.00035616,5]
[341153829,1730478642445,-500.0,0.00035616,5]
[341153831,1730478642454,-500.0,0.00035616,5]
[341153833,1730478642464,-500.0,0.00035616,5]
[341153835,1730478642473,-500.0,0.00035616,5]
[341153837,1730478642483,-500.0,0.00035616,5]
[341153839,1730478642493,-1210.69,0.00035616,5]
[341153841,1730478642502,-500.0,0.00035616,5]
[341153843,1730478642512,-500.0,0.00035616,5]
[341153845,1730478642522,-506.23719266,0.00035616,5]
[341153847,1730478642532,-501.67287588,0.00035616,5]
[341153849,1730478642541,-1022.23,0.00035616,5]
[341153851,1730478642554,-500.0,0.00035616,5]
[341153853,1730478642564,-500.0,0.00035616,5]
[341153855,1730478642573,-500.0,0.00035616,5]
[341153857,1730478642583,-503.18849871,0.00035616,5]
[341153859,1730478642593,-500.0,0.00035616,5]
[341153861,1730478642603,-500.0,0.00035616,5]
[341153863,1730478642613,-500.0,0.00035616,5]
[341153866,1730478642623,-161.1951441,0.00035616,5]
[341153868,1730478642633,-567.25,0.00035616,5]
[341153870,1730478642643,-500.0,0.00035616,5]
[341153872,1730478642653,-500.0,0.00035616,5]
[341153874,1730478642662,-510.08464049,0.00035616,5]
[341153876,1730478642672,-500.0,0.00035616,5]
[341153878,1730478642682,-533.35,0.00035616,5]
[341153880,1730478642695,-505.96004474,0.00035616,5]
[341153882,1730478642706,-500.0,0.00035616,5]
[341153884,1730478642715,-500.0,0.00035616,5]
[341153886,1730478642725,-500.0,0.00035616,5]
[341153888,1730478642734,-500.0,0.00035616,5]
[341153890,1730478642743,-500.0,0.00035616,5]
[341153892,1730478642753,-500.0,0.00035616,5]
[341153894,1730478642762,-500.0,0.00035616,5]
[341153896,1730478642772,-500.0,0.00035616,5]
[341153898,1730478642781,-500.0,0.00035616,5]
[341153900,1730478642790,-500.0,0.00035616,5]
[341153902,1730478642800,-623.43,0.00035616,5]
[341153904,1730478642811,-508.82820898,0.00035616,5]
[341153906,1730478642820,-500.0,0.00035616,5]
[341153908,1730478642830,-500.0,0.00035616,5]
[341153910,1730478642839,-642.25,0.00035616,5]
[341153912,1730478642849,-500.0,0.00035616,5]
[341153914,1730478642859,-500.0,0.00035616,5]
[341153916,1730478642868,-503.8412065,0.00035616,5]
[341153918,1730478642879,-500.0,0.00035616,5]
[341153920,1730478642889,-500.0,0.00035616,5]
[341153921,1730478642899,-500.0,0.00035616,5]
[341153922,1730478642909,-500.0,0.00035616,5]
[341153923,1730478642918,-500.0,0.00035616,5]
[341153924,1730478642927,-540.47851131,0.00035616,5]
[341153925,1730478642941,-500.0,0.00035616,5]
[341153927,1730478642950,-508.24,0.00035616,5]
[341153929,1730478642960,-556.5624346,0.00035616,5]
[341153930,1730478642970,-500.0,0.00035616,5]
[341153932,1730478642979,-500.0,0.00035616,5]
[341153934,1730478642997,-500.0,0.00035616,5]
[341153935,1730478643008,-500.0,0.00035616,5]
[341153936,1730478643018,-500.0,0.00035616,5]
[341153937,1730478643028,-500.0,0.00035616,5]
[341153938,1730478643037,-500.0,0.00035616,5]